bitfinex-derivatives/quotes_SOLF0:USTF0_20260108
["timestamp","ask_amount","ask_price","bid_price","bid_amount"]
[1767883115722,6.7384,133.74,133.66,6.7421]
[1767883116327,88.4,133.75,133.64,106.71881277]
[1767883116624,88.4,133.75,133.67,6.7415]
[1767883116922,88.42,133.76,133.67,104.8713]
[1767883117130,88.42,133.76,133.7,6.7401]
[1767883117520,88.42,133.76,133.67,106.69601277]
[1767883117728,104.7494,133.83,133.69,106.67991277]
[1767883118025,6.7353,133.8,133.69,106.67991277]
[1767883118220,88.42,133.79,133.72,6.7391]
[1767883118420,88.42,133.79,133.69,106.67991277]
[1767883119016,88.42,133.78,133.69,106.67991277]
[1767883119225,88.42,133.78,133.72,6.7391]
[1767883119532,88.42,133.78,133.7,104.8465]
[1767883119729,88.42,133.78,133.7,106.67431277]
[1767883120028,88.42,133.78,133.71,1.82781277]
[1767883120222,88.42,133.81,133.71,106.66421277]
[1767883120424,88.42,133.81,133.72,106.65801277]
[1767883120725,88.42,133.81,133.76,6.7369]
[1767883121328,6.7332,133.84,133.76,6.7369]
[1767883121525,22.43,133.86,133.73,106.64811277]
[1767883121526,88.42,133.83,133.77,6.7366]
[1767883122529,104.6869,133.91,133.77,106.61781277]
[1767883122721,88.42,133.9,133.77,106.61781277]
[1767883123127,104.6869,133.91,133.77,106.61781277]
[1767883123335,6.7312,133.88,133.8,6.7349]
[1767883123536,6.7312,133.88,133.77,106.61781277]
[1767883123732,88.42,133.9,133.78,104.7849]
[1767883123937,88.42,133.9,133.81,104.7576]
[1767883124240,88.42,133.9,133.79,195.02211277]
[1767883124429,88.4,133.89,133.79,195.02211277]
[1767883124937,88.4,133.89,133.79,106.60211277]
[1767883125234,88.4,133.89,133.8,6.7349]
[1767883126036,88.4,133.88,133.8,6.7349]
[1767883126238,88.4,133.88,133.79,106.60151277]
[1767883127528,88.4,133.88,133.81,6.7345]
[1767883127939,88.4,133.88,133.8,104.7694]
[1767883128133,88.4,133.88,133.81,1.82781277]
[1767883128738,88.38,133.91,133.81,106.58491277]
[1767883128941,88.38,133.91,133.8,109.45850134]
[1767883128942,88.38,133.91,133.84,106.56401277]
[1767883129242,88.38,133.91,133.84,1.82781277]
[1767883129427,88.38,133.91,133.82,104.7513]
[1767883129630,88.38,133.92,133.82,104.7513]
[1767883130339,88.38,133.92,133.85,1.82781277]
[1767883130538,4.68910134,133.99,133.85,106.55211277]
[1767883130738,6.7268,133.97,133.88,6.7309]
[1767883131244,6.7268,133.97,133.85,106.55211277]
[1767883131941,6.7268,133.97,133.88,6.731]
[1767883132140,88.38,133.98,133.86,1.82781277]
[1767883132541,88.38,133.98,133.88,6.7309]
[1767883132542,6.7268,133.97,133.88,6.7309]
[1767883132940,88.38,133.98,133.86,106.54781277]
[1767883133145,88.38,133.98,133.85,106.55211277]
[1767883133435,193.0102,133.98,133.84,104.7356]
[1767883133644,193.0102,133.98,133.85,6.7323]
[1767883133645,11.41660134,133.96,133.85,6.7323]
[1767883133844,4.68910134,133.96,133.85,6.7323]
[1767883134044,4.68910134,133.96,133.84,106.56341277]
[1767883134239,4.68910134,133.96,133.82,104.7513]
[1767883134240,27.11910134,133.96,133.82,104.7513]
[1767883134444,27.11910134,133.96,133.82,106.57911277]
[1767883134445,88.36,133.95,133.82,106.57911277]
[1767883134842,88.36,133.94,133.84,106.56321277]
[1767883135639,88.36,133.94,133.85,106.55531277]
[1767883135839,88.34,133.94,133.85,106.55531277]
[1767883136448,88.34,133.94,133.86,6.7318]
[1767883136745,4.68910134,133.96,133.86,6.7318]
[1767883137051,88.34,133.94,133.87,1.82781277]
[1767883137745,95.0683,133.94,133.85,6.7322]
[1767883137943,88.34,133.94,133.81,88.34]
[1767883138247,4.68910134,133.93,133.8,106.59431277]
[1767883138556,88.34,133.92,133.83,6.7334]
[1767883139448,88.34,133.92,133.84,6.7329]
[1767883139646,88.34,133.92,133.81,104.7575]
[1767883139847,131.78400134,133.94,133.8,1.82781277]
[1767883140053,110.77,133.93,133.8,1.82781277]
[1767883140946,4.68910134,133.91,133.8,1.82781277]
[1767883141256,88.34,133.93,133.82,1.82781277]
[1767883141754,95.0688,133.93,133.82,1.82781277]
[1767883141946,88.34,133.93,133.84,1.82781277]
[1767883142341,4.68910134,133.97,133.86,1.86538536]
[1767883142543,88.34,133.96,133.86,1.86538536]
[1767883142951,88.34,133.96,133.88,6.731]
[1767883142952,95.0672,133.96,133.88,6.731]
[1767883143151,88.34,133.96,133.87,1.86538536]
[1767883144253,88.34,133.96,133.89,6.7305]
[1767883144450,23.72988981,133.99,133.89,104.6963]
[1767883144451,1.29988981,133.99,133.89,104.6963]
[1767883144753,88.34,134.0,133.91,1.86538536]
[1767883145251,88.34,134.0,133.93,1.99053888]
[1767883145450,88.34,134.0,133.93,8.71873888]
[1767883145748,88.34,134.0,133.91,106.67153888]
[1767883145943,88.34,134.0,133.91,1.99053888]
[1767883146348,88.34,134.0,133.92,6.7287]
[1767883146544,88.34,134.0,133.89,104.6963]
[1767883146850,88.34,134.0,133.91,1.99053888]
[1767883147745,88.34,134.0,133.93,6.7284]
[1767883147954,88.34,134.0,133.91,1.99053888]
[1767883148252,127.015,134.04,133.88,106.69633888]
[1767883148253,104.5952,134.03,133.88,106.69633888]
[1767883148559,215.3541,134.02,133.88,106.69633888]
[1767883148756,104.6064,134.01,133.88,1.99053888]
[1767883148949,88.32,134.0,133.88,1.99053888]
[1767883149148,215.3669,134.0,133.88,1.99053888]
[1767883149648,88.3,133.99,133.88,1.99053888]
[1767883149854,95.026,133.99,133.89,6.7304]
[1767883150055,95.026,133.99,133.88,1.99053888]
[1767883150443,95.026,133.99,133.87,104.7122]
[1767883150444,192.9239,133.99,133.85,106.71843888]
[1767883150645,215.3539,133.99,133.85,106.71773888]
[1767883150853,88.3,133.99,133.87,1.99053888]
[1767883151043,6.7265,133.98,133.9,6.73]
[1767883151250,104.6041,134.02,133.89,1.99053888]
[1767883151553,88.3,134.01,133.89,1.99053888]
[1767883151753,88.3,134.01,133.92,6.7291]
[1767883152058,1.29947722,134.03,133.9,106.68113888]
[1767883152259,110.73,134.02,133.91,1.99053888]
[1767883152460,6.7247,134.01,133.93,6.7285]
[1767883152661,88.3,134.02,133.91,1.99053888]
[1767883152861,88.3,134.02,133.92,106.66643888]
[1767883153057,95.0242,134.02,133.94,6.728]
[1767883153361,88.3,134.02,133.95,1.99053888]
[1767883153566,88.3,134.02,133.95,106.63973888]
[1767883153761,88.3,134.02,133.96,6.7267]
[1767883153957,88.3,134.05,133.95,1.99053888]
[1767883154355,22.43,134.09,133.98,1.99053888]
[1767883154659,88.3,134.08,134.0,1.99053888]
[1767883155155,104.5434,134.09,133.97,1.99053888]
[1767883155457,88.3,134.07,133.98,1.99053888]
[1767883155661,88.3,134.06,133.98,1.99053888]
[1767883157147,88.3,134.06,133.97,6.7262]
[1767883157346,6.7232,134.04,133.96,6.727]
[1767883157962,88.28,134.03,133.96,6.727]
[1767883160251,88.28,134.03,133.97,8.71693888]
[1767883161255,88.26,134.06,133.98,8.71633888]
[1767883161459,6.7227,134.05,133.98,8.71633888]
[1767883162166,6.7227,134.05,133.98,1.99053888]
[1767883163159,6.7227,134.05,133.93,192.9243]
[1767883163160,88.26,134.06,133.95,1.99053888]
[1767883163662,104.5859,134.04,133.92,1.99053888]
[1767883164060,88.26,134.03,133.92,1.99053888]
[1767883164566,88.26,134.03,133.93,6.7285]
[1767883164761,88.26,134.03,133.92,1.99053888]
[1767883165058,88.26,134.03,133.93,6.7282]
[1767883165059,6.7242,134.02,133.93,6.7282]
[1767883165259,88.26,134.03,133.92,1.99053888]
[1767883165662,6.7247,134.01,133.94,6.728]
[1767883166156,192.8508,134.03,133.92,1.99053888]
[1767883166359,88.26,134.03,133.93,6.7285]
[1767883167062,88.26,134.03,133.94,1.99053888]
[1767883167562,6.7237,134.03,133.95,8.71773888]
[1767883168064,88.26,134.04,133.95,8.71773888]
[1767883168572,126.9981,134.06,133.95,8.71773888]
[1767883168761,88.26,134.05,133.95,8.71773888]
[1767883168961,88.26,134.05,133.96,6.7271]
[1767883169469,192.8373,134.05,133.94,6.7277]
[1767883169670,104.5773,134.05,133.94,6.7277]
[1767883169870,88.26,134.04,133.94,6.7277]
[1767883170056,104.5915,134.03,133.93,1.99053888]
[1767883170255,104.6064,134.01,133.9,1.99053888]
[1767883170463,104.6219,133.99,133.9,1.99053888]
[1767883170767,6.7271,133.96,133.9,1.99053888]
[1767883170975,192.8731,133.98,133.87,1.99053888]
[1767883171269,104.6371,133.97,133.87,1.99053888]
[1767883171471,6.7282,133.94,133.87,8.72203888]
[1767883171764,104.6509,133.96,133.87,1.99053888]
[1767883171968,6.7283,133.94,133.85,8.72283888]
[1767883172467,6.7288,133.93,133.85,8.72283888]
[1767883173159,6.7293,133.92,133.85,1.99053888]
[1767883173363,88.26,133.94,133.85,1.99053888]
[1767883173869,192.9258,133.94,133.82,90.2573747]
[1767883174070,192.9258,133.94,133.82,1.9973747]
[1767883174071,104.6842,133.91,133.82,1.9973747]
[1767883174262,192.9533,133.9,133.79,1.9973747]
[1767883174670,6.7315,133.88,133.8,6.7348]
[1767883174868,88.26,133.88,133.79,1.9973747]
[1767883175573,104.7183,133.87,133.79,1.9973747]
[1767883175760,104.7183,133.87,133.76,90.2573747]
[1767883176082,104.7183,133.87,133.74,1.9973747]
[1767883176083,104.7318,133.85,133.74,1.9973747]
[1767883176273,6.7338,133.83,133.75,8.7348747]
[1767883176470,6.7338,133.83,133.76,1.9973747]
[1767883177181,88.28,133.84,133.76,1.9973747]
[1767883177561,95.0128,133.85,133.76,1.9973747]
[1767883177782,95.0128,133.85,133.77,1.9973747]
[1767883177967,88.28,133.85,133.77,1.9973747]
[1767883178164,88.28,133.85,133.78,8.7333747]
[1767883178568,88.28,133.85,133.78,1.9973747]
[1767883178975,95.0128,133.85,133.78,1.9973747]
[1767883179370,95.0328,133.85,133.78,1.9973747]
[1767883179875,95.0328,133.85,133.69,118.332]
[1767883179876,104.7385,133.84,133.75,1.9973747]
[1767883180078,88.3,133.84,133.75,1.9973747]
[1767883180966,6.734,133.83,133.75,1.9973747]
[1767883181677,6.7346,133.82,133.75,1.9973747]
[1767883182073,88.3,133.82,133.75,1.9973747]
[1767883182778,88.3,133.85,133.75,1.9973747]
[1767883183077,104.7289,133.86,133.75,1.9973747]
[1767883183270,88.32,133.85,133.75,1.9973747]
[1767883183674,88.32,133.85,133.76,1.9973747]
[1767883184378,88.32,133.87,133.77,8.7338747]
[1767883184771,6.7323,133.86,133.78,8.7332747]
[1767883184971,88.32,133.86,133.78,8.7332747]
[1767883185374,88.32,133.86,133.79,8.7327747]
[1767883185574,6.7318,133.87,133.79,8.7327747]
[1767883186177,88.32,133.88,133.81,1.9973747]
[1767883186771,95.0513,133.88,133.81,1.9973747]
[1767883187175,95.0513,133.88,133.8,6.735]
[1767883187374,6.7318,133.87,133.78,97.0531747]
[1767883187580,88.32,133.88,133.78,97.0531747]
[1767883187783,104.7151,133.87,133.74,1.9973747]
[1767883188773,104.7485,133.83,133.72,1.9973747]
[1767883188979,104.7698,133.8,133.69,1.9973747]
[1767883189275,193.0957,133.82,133.7,1.9973747]
[1767883189484,88.34,133.82,133.71,1.9973747]
[1767883189671,193.098,133.82,133.71,1.9973747]
[1767883189871,104.7639,133.81,133.71,1.9973747]
[1767883190274,6.7355,133.8,133.71,8.7369747]
[1767883190575,95.0755,133.8,133.71,8.7369747]
[1767883190782,6.7348,133.81,133.73,8.7357747]
[1767883190978,88.34,133.83,133.73,1.9973747]
[1767883191377,6.7343,133.82,133.74,1.9973747]
[1767883192675,6.7348,133.81,133.74,1.9973747]
[1767883193779,6.7352,133.8,133.72,1.9973747]
[1767883194081,88.34,133.82,133.72,1.9973747]
[1767883194082,88.34,133.81,133.72,1.9973747]
[1767883194478,6.7364,133.78,133.72,1.9973747]
[1767883194684,6.7364,133.78,133.69,1.9973747]
[1767883195077,88.36,133.79,133.71,1.9973747]
[1767883195288,6.7355,133.8,133.71,1.9973747]
[1767883195683,88.36,133.82,133.73,6.7385]
[1767883195684,95.0944,133.82,133.73,6.7385]
[1767883195883,88.36,133.82,133.73,6.7385]
[1767883196290,6.7352,133.8,133.73,6.7385]
[1767883196992,6.7357,133.79,133.71,6.7393]
[1767883197186,6.7357,133.79,133.72,1.9973747]
[1767883197701,104.7722,133.8,133.69,8.7378747]
[1767883198097,104.7648,133.81,133.69,1.9973747]
[1767883198300,6.7364,133.78,133.69,1.9973747]
[1767883198792,6.7371,133.77,133.69,1.9973747]
[1767883199000,104.78,133.79,133.69,1.9973747]
[1767883199206,104.78,133.79,133.67,1.9973747]
[1767883199598,193.14,133.79,133.67,1.9973747]
[1767883199994,104.7858,133.78,133.67,1.9973747]
[1767883200190,88.36,133.79,133.7,1.9973747]
[1767883200396,104.763,133.81,133.7,1.9973747]
[1767883200590,104.763,133.81,133.71,8.7369747]
[1767883200895,193.1176,133.82,133.71,1.9973747]
[1767883201090,88.36,133.82,133.73,8.7357747]
[1767883201497,104.7427,133.84,133.73,1.9973747]
[1767883201693,193.1216,133.84,133.73,1.9973747]
[1767883202105,88.38,133.84,133.74,1.9973747]
[1767883202498,88.38,133.84,133.75,1.92715247]
[1767883202701,6.7326,133.86,133.77,1.92715247]
[1767883202898,88.38,133.88,133.78,1.92715247]
[1767883203106,88.38,133.88,133.79,1.92715247]
[1767883203402,104.68,133.92,133.79,1.92715247]
[1767883203403,88.38,133.91,133.79,1.92715247]
[1767883203607,88.38,133.9,133.79,1.92715247]
[1767883203903,88.38,133.9,133.8,1.92715247]
[1767883204405,6.7295,133.92,133.83,1.92715247]
[1767883204607,4.68250767,133.97,133.83,1.92715247]
[1767883204796,88.38,133.96,133.85,1.92715247]
[1767883205102,104.6526,133.95,133.85,1.92715247]
[1767883205406,88.36,133.95,133.85,1.92715247]
[1767883205809,6.7284,133.94,133.85,1.92715247]
[1767883206010,88.36,133.97,133.85,1.92715247]
[1767883206607,104.6525,133.95,133.85,1.92715247]
[1767883206908,104.6605,133.94,133.85,1.92715247]
[1767883207316,104.6776,133.92,133.81,1.86421698]
[1767883207609,104.6776,133.92,133.82,1.86421698]
[1767883207610,88.36,133.92,133.82,1.86421698]
[1767883207912,88.36,133.94,133.84,1.86421698]
[1767883208312,197.70680767,133.94,133.81,1.86421698]
[1767883208519,104.6555,133.95,133.83,1.86421698]
[1767883208814,193.0155,133.95,133.83,1.86421698]
[1767883209012,104.6626,133.94,133.84,1.86421698]
[1767883209511,104.6391,133.97,133.86,1.86421698]
[1767883209715,88.34,133.98,133.88,1.86421698]
[1767883209907,6.7253,134.0,133.91,6.7294]
[1767883210115,6.7253,134.0,133.91,8.59361698]
[1767883210306,109.27560767,134.03,133.91,8.59361698]
[1767883210506,95.0643,134.02,133.92,6.7288]
[1767883210702,192.9435,134.02,133.92,1.86421698]
[1767883210903,104.6134,134.0,133.89,1.86421698]
[1767883211108,6.7259,133.99,133.9,1.86421698]
[1767883211511,104.6167,134.0,133.9,1.86421698]
[1767883211915,104.6222,133.99,133.9,1.86421698]
[1767883212120,104.6306,133.98,133.87,90.20421698]
[1767883212425,104.6376,133.97,133.88,1.86421698]
[1767883212612,104.6536,133.95,133.84,1.86421698]
[1767883213007,88.32,133.95,133.85,1.86421698]
[1767883213212,88.32,133.95,133.86,1.86421698]
[1767883213615,88.32,133.98,133.87,1.86421698]
[1767883214116,6.7252,134.0,133.9,1.86421698]
[1767883214912,104.6227,133.99,133.87,1.86421698]
[1767883215113,192.9427,133.99,133.87,1.86421698]
[1767883215315,88.32,133.99,133.89,1.86421698]
[1767883215707,88.32,133.99,133.9,1.86421698]
[1767883215909,88.32,134.02,133.91,1.86421698]
[1767883216317,6.7249,134.01,133.92,6.7289]
[1767883217018,6.7253,134.0,133.91,1.86421698]
[1767883217213,88.32,134.02,133.91,1.86421698]
[1767883217421,95.0444,134.02,133.92,8.59311698]
[1767883217717,6.7244,134.02,133.93,1.86421698]
[1767883217920,6.7234,134.04,133.94,8.59211698]
[1767883218218,192.8768,134.05,133.94,8.59211698]
[1767883218908,104.5823,134.04,133.94,1.86421698]
[1767883219111,104.5902,134.03,133.94,1.86421698]
[1767883219305,6.7258,133.99,133.91,1.86421698]
[1767883219506,104.6157,134.0,133.91,1.86421698]
[1767883220107,6.7262,133.98,133.91,1.86421698]
[1767883220507,88.3,134.0,133.91,1.86421698]
[1767883220717,6.7258,133.99,133.91,1.86421698]
[1767883221114,104.6219,133.99,133.88,101.55762465]
[1767883221822,104.6219,133.99,133.88,1.86421698]
[1767883222318,192.9019,133.99,133.88,1.86421698]
[1767883222821,104.6292,133.98,133.88,1.86421698]
[1767883223118,88.28,133.99,133.88,1.86421698]
[1767883223325,88.28,133.99,133.91,1.86421698]
[1767883223715,104.6314,133.98,133.89,88.28]
[1767883223924,104.6314,133.98,133.87,1.86421698]
[1767883224224,88.28,133.97,133.87,1.86421698]
[1767883224425,88.28,133.97,133.88,1.86421698]
[1767883224922,88.28,133.97,133.9,6.73]
[1767883225122,6.7262,133.98,133.9,8.59421698]
[1767883225518,6.7267,133.97,133.9,1.86421698]
[1767883225718,104.6269,133.99,133.87,1.86421698]
[1767883226115,6.7267,133.97,133.89,6.7305]
[1767883227019,104.6299,133.98,133.87,8.59541698]
[1767883227220,104.637,133.97,133.84,199.55952465]
[1767883227426,104.6454,133.96,133.85,6.7325]
[1767883227729,192.9254,133.96,133.85,6.7325]
[1767883228223,6.7287,133.93,133.85,6.7325]
[1767883228427,104.6564,133.95,133.84,1.86421698]
[1767883228931,104.6633,133.94,133.81,1.86421698]
[1767883229125,104.6633,133.94,133.82,1.86421698]
[1767883229328,88.28,133.93,133.85,6.7325]
[1767883229518,104.6454,133.96,133.85,6.7325]
[1767883229829,88.28,133.95,133.85,8.59671698]
[1767883230018,6.7283,133.94,133.86,6.732]
[1767883230630,95.0078,133.95,133.87,6.7315]
[1767883230925,88.28,133.95,133.85,1.86421698]
[1767883231225,6.7292,133.92,133.83,88.28]
[1767883231416,104.6687,133.93,133.82,1.86421698]
[1767883231617,104.6841,133.91,133.79,1.86421698]
[1767883231822,88.28,133.9,133.79,1.86421698]
[1767883232023,192.9721,133.9,133.79,8.59941698]
[1767883232224,104.7004,133.89,133.76,1.99413951]
[1767883232425,88.28,133.88,133.77,1.99413951]
[1767883232624,6.7318,133.87,133.79,6.7356]
[1767883233225,88.28,133.9,133.78,1.99413951]
[1767883234126,6.7318,133.87,133.8,1.99413951]
[1767883234326,192.9748,133.9,133.77,1.99413951]
[1767883234327,104.7074,133.88,133.77,1.99413951]
[1767883234535,104.6924,133.9,133.77,1.99413951]
[1767883234740,88.3,133.88,133.77,1.99413951]
[1767883235227,6.7323,133.86,133.77,8.73053951]
[1767883235525,104.7155,133.87,133.77,1.99413951]
[1767883235728,104.7232,133.86,133.74,90.27413951]
[1767883235922,88.3,133.86,133.75,1.99413951]
[1767883236224,88.3,133.86,133.76,1.99413951]
[1767883236424,6.7328,133.85,133.76,1.99413951]
[1767883236729,88.3,133.86,133.76,1.99413951]
[1767883237719,4.68250767,133.89,133.77,106.78703951]
[1767883238033,104.723,133.86,133.74,1.99413951]
[1767883238333,104.732,133.85,133.74,1.99413951]
[1767883238527,197.70140767,133.87,133.74,1.99413951]
[1767883238923,104.7048,133.89,133.74,1.99413951]
[1767883239123,88.32,133.88,133.77,1.99413951]
[1767883239728,6.732,133.87,133.79,6.7354]
[1767883240132,88.32,133.88,133.77,1.99413951]
[1767883240534,104.6479,133.96,133.83,1.99413951]
[1767883240729,192.9679,133.96,133.83,1.99413951]
[1767883240935,104.6604,133.94,133.83,8.72763951]
[1767883241536,104.6604,133.94,133.81,88.32]
[1767883241537,6.7299,133.91,133.81,6.7343]
[1767883242129,6.7304,133.9,133.8,90.31413951]
[1767883242635,197.68150767,133.92,133.8,90.31413951]
[1767883242636,6.7308,133.89,133.8,90.31413951]
[1767883242931,6.7308,133.89,133.8,8.72903951]
[1767883243138,6.7308,133.89,133.8,1.99413951]
[1767883243543,88.32,133.9,133.8,1.99413951]
[1767883243730,6.7299,133.91,133.81,1.99413951]
[1767883243930,95.0499,133.91,133.81,1.99413951]
[1767883244129,95.0499,133.91,133.82,6.7339]
[1767883244347,109.32350767,133.97,133.84,1.99413951]
[1767883244640,104.6564,133.95,133.83,1.99413951]
[1767883244839,6.7289,133.93,133.83,1.99413951]
[1767883245038,4.68250767,133.96,133.85,6.7324]
[1767883245233,88.32,133.97,133.86,1.99413951]
[1767883245636,88.32,133.97,133.88,6.7309]
[1767883245941,109.30040767,134.0,133.87,1.99413951]
[1767883245942,104.6258,133.99,133.87,1.99413951]
[1767883246143,6.7253,134.0,133.9,6.7299]
[1767883246441,192.9266,134.01,133.9,6.7299]
[1767883246942,6.7258,133.99,133.9,8.72403951]
[1767883247239,88.32,134.01,133.88,109.38810767]
[1767883247240,88.32,134.01,133.91,8.72353951]
[1767883247826,88.32,134.01,133.91,1.99413951]
[1767883248028,88.32,134.04,133.92,1.99413951]
[1767883248240,192.906,134.04,133.92,1.99413951]
[1767883248538,104.5676,134.06,133.94,1.99413951]
[1767883248736,192.883,134.07,133.94,1.99413951]
[1767883249131,104.563,134.07,133.94,1.99413951]
[1767883249335,88.32,134.06,133.94,1.99413951]
[1767883249632,88.32,134.06,133.96,1.99413951]
[1767883250034,6.7234,134.04,133.96,1.99413951]
[1767883250630,6.7238,134.03,133.93,97.04253951]
[1767883251030,6.7238,134.03,133.93,90.31413951]
[1767883251229,6.7238,134.03,133.94,1.99413951]
[1767883251446,104.5321,134.11,133.97,1.99413951]
[1767883251632,192.8237,134.12,134.0,1.99413951]
[1767883251840,6.7198,134.11,134.01,6.7242]
[1767883252037,6.7198,134.11,134.01,1.99413951]
[1767883252933,88.28,134.12,134.01,1.99413951]
[1767883254649,104.5285,134.11,133.98,111.30224718]
[1767883254944,88.28,134.12,134.01,6.67664718]
[1767883255141,104.5076,134.14,134.01,6.67664718]
[1767883255336,88.28,134.13,134.01,6.67664718]
[1767883256038,192.7948,134.13,134.01,6.67664718]
[1767883256543,6.7199,134.11,134.02,6.7238]
[1767883257337,88.28,134.13,134.03,1.99413951]
[1767883257545,88.26,134.17,134.05,1.99413951]
[1767883257846,109.15050767,134.19,134.06,106.55993951]
[1767883258141,104.468,134.19,134.07,1.99413951]
[1767883258334,88.26,134.18,134.08,8.71483951]
[1767883260247,104.4824,134.17,134.06,1.99413951]
[1767883260455,104.4995,134.15,134.03,1.99413951]
[1767883260639,104.5064,134.14,134.03,1.99413951]
[1767883260841,6.7193,134.12,134.03,1.99413951]
[1767883261043,104.4893,134.16,134.04,1.99413951]
[1767883261250,88.22,134.16,134.06,1.99413951]
[1767883261452,94.9373,134.16,134.06,8.71593951]
[1767883261851,88.22,134.17,134.06,1.99413951]
[1767883262053,94.9368,134.17,134.08,1.99413951]
[1767883262653,104.4891,134.16,134.05,6.7225]
[1767883262846,104.4891,134.16,134.01,106.43929936]
[1767883262847,104.5069,134.14,134.01,106.43929936]
[1767883263048,109.18040767,134.15,134.03,1.83919936]
[1767883263242,88.22,134.14,134.03,1.83919936]
[1767883263640,104.4695,134.19,134.06,1.83919936]
[1767883263844,192.6695,134.19,134.07,1.83919936]
[1767883264352,6.7174,134.16,134.07,1.83919936]
[1767883264854,88.2,134.17,134.08,1.83919936]
[1767883265652,104.489,134.16,134.05,1.8428124]
[1767883265844,104.4971,134.15,134.05,1.8428124]
[1767883266045,192.6971,134.15,134.05,1.8428124]
[1767883266245,104.5044,134.14,134.03,6.7232]
[1767883266645,88.2,134.13,134.03,6.7232]
[1767883266845,104.5044,134.14,134.03,6.7232]
[1767883267052,88.2,134.13,134.03,6.7232]
[1767883267453,6.7197,134.11,134.02,1.8428124]
[1767883267755,88.2,134.13,134.02,1.8428124]
[1767883268258,104.4971,134.15,134.05,6.7221]
[1767883268259,88.2,134.15,134.05,6.7221]
[1767883268754,6.7187,134.13,134.05,6.7221]
[1767883269150,88.2,134.15,134.05,6.7221]
[1767883269357,6.7179,134.15,134.05,1.8428124]
[1767883269856,6.7183,134.14,134.06,6.7218]
[1767883271250,104.4451,134.22,134.07,1.8428124]
[1767883271453,104.4578,134.2,134.08,1.8428124]
[1767883271653,192.6343,134.21,134.08,1.8428124]
[1767883271859,6.7158,134.19,134.09,6.7203]
[1767883272056,104.4597,134.2,134.09,6.7203]
[1767883272262,88.18,134.19,134.09,6.7203]
[1767883272555,192.6497,134.19,134.08,1.8428124]
[1767883272863,104.4822,134.17,134.05,90.0228124]
[1767883273154,192.6733,134.16,134.05,8.5652124]
[1767883273460,88.18,134.16,134.05,1.8428124]
[1767883273657,192.6714,134.16,134.05,1.8428124]
[1767883274458,6.7183,134.14,134.05,8.5652124]
[1767883274656,88.18,134.16,134.06,1.8428124]
[1767883275363,6.7178,134.15,134.06,1.8428124]
[1767883276661,6.7183,134.14,134.06,8.5647124]
[1767883276862,88.18,134.16,134.06,1.8428124]
[1767883277263,94.8972,134.16,134.07,6.7214]
[1767883278572,6.7154,134.2,134.1,1.8428124]
[1767883278868,104.4456,134.22,134.1,1.8428124]
[1767883279062,104.4456,134.22,134.08,104.5503]
[1767883279063,104.4731,134.18,134.08,1.8428124]
[1767883279655,6.7173,134.16,134.08,8.5635124]
[1767883279867,88.18,134.18,134.08,1.8428124]
[1767883280064,88.18,134.24,134.08,1.8428124]
[1767883280263,0.09068563,134.27,134.17,1.8428124]
[1767883280465,16.86321492,134.29,134.18,106.3123124]
[1767883280665,16.86321492,134.29,134.2,106.2985124]
[1767883280866,16.86321492,134.29,134.21,106.2892124]
[1767883281066,16.86321492,134.29,134.22,104.4416]
[1767883281370,0.09068563,134.33,134.22,104.4416]
[1767883281371,0.09068563,134.33,134.23,8.5560124]
[1767883281570,0.09068563,134.33,134.23,1.8428124]
[1767883281768,0.09068563,134.33,134.23,106.2757124]
[1767883281972,0.09068563,134.33,134.23,1.8428124]
[1767883282867,0.09068563,134.33,134.23,8.5560124]
[1767883283263,0.09068563,134.33,134.24,1.8428124]
[1767883284174,6.7072,134.36,134.25,8.5550124]
[1767883285070,6.84288709,134.36,134.25,8.5550124]
[1767883285278,104.3337,134.36,134.24,1.8428124]
[1767883285465,0.13568709,134.36,134.24,106.2688124]